[Event "1st Turkish League 2017"]
[Site "Konya"]
[Date "2017.07.20"]
[Round "5"]
[White "Keler, Faruk"]
[Black "Hajiyev, Shahin"]
[Result "1-0"]
[ECO "A11"]
[WhiteElo "2262"]
[BlackElo "2008"]
[Annotator "NA"]
[PlyCount "47"]
[EventType "team-tourn"]
[EventCountry "TUR"]
[SourceTitle "playchess.com"]
[Source "ChessBase"]
[SourceQuality "1"]
[TimeControl "5400+30"]

1. Nf3 {[%emt 0:00:30]} d5 {[%emt 0:01:00]} 2. g3 {[%emt 0:00:30]} c6 {[%emt 0:00:30]} 3. Bg2 {[%emt 0:00:00]} Bg4 {[%emt 0:00:30]} 4. O-O {[%emt 0:00:00]} Nd7 {[%emt 0:00:30]} 5. c4 {[%emt 0:00:30]} e6 {[%emt 0:00:00]} 6. cxd5 {[%emt 0:00:30]} cxd5 {[%emt 0:01:00]} 7. Nc3 {[%emt 0:01:30]} Ngf6 {[%emt 0:00:30]} 8. Qb3 {[%emt 0:02:30] A11: English Opening: 1...c6} (8. d3 Bd6 9. Bd2 {½-½ (9) Bachmann,A (2646)-Kuzubov,Y (2637) Chartres 2017}) 8... Qb6 {[%emt 0:02:30]} 9. Qxb6 {[%emt 0:00:30]} Nxb6 {[%emt 0:00:30]} 10. d3 {[%emt 0:00:30]} Be7 {[%emt 0:07:30]} 11. Be3 {[%emt 0:00:30]} Nfd7 {[%emt 0:07:30]} 12. Rfc1 $146 {[%emt 0:03:30]} ({Predecessor:} 12. Nd2 Bc5 13. Bxc5 Nxc5 14. Rac1 Nbd7 15. h3 {1-0 (23) Loginov,V (2525)-Gostisa,L (2430) Ljubljana 1995}) 12... a6 {[%emt 0:04:30]} 13. a4 {[%emt 0:05:30]} Nc8 {[%emt 0:08:30]} 14. a5 {[%emt 0:01:30]} Bxf3 {[%emt 0:07:30]} 15. Bxf3 {[%emt 0:05:30]} Ne5 {[%emt 0:00:30]} 16. Na4 {[%emt 0:02:30]} Nxf3+ {[%emt 0:11:30]} 17. exf3 {[%emt 0:01:30]} Nd6 {[%emt 0:00:30]} 18. Nc5 {[%emt 0:30:30]} O-O {[%emt 0:11:30]} 19. Bf4 {[%emt 0:03:30]} Rab8 {[%emt 0:03:30]} 20. Nd7 {[%emt 0:01:30]} Rbd8 {[%emt 0:10:49]} 21. Nxf8 $18 {[%emt 0:00:30]} Kxf8 {[%emt 0:00:11]} 22. Rc7 {[%emt 0:00:30]} Rb8 {[%emt 0:00:56]} 23. Rd7 {[%emt 0:00:30]} Ke8 {[%emt 0:00:54]} 24. Bxd6 {[%emt 0:00:00]} 1-0

[Event "1st Turkish League 2017"]
[Site "Konya"]
[Date "2017.07.20"]
[Round "5"]
[White "Dogan, Nazmi Can"]
[Black "Taskaya, Muhammed"]
[Result "1-0"]
[ECO "D00"]
[WhiteElo "2242"]
[BlackElo "1997"]
[Annotator "NA"]
[PlyCount "115"]
[EventType "team-tourn"]
[EventCountry "TUR"]
[SourceTitle "playchess.com"]
[Source "ChessBase"]
[SourceQuality "1"]
[TimeControl "5400+30"]

1. d4 {[%emt 0:00:30]} d5 {[%emt 0:01:00]} 2. Bf4 {[%emt 0:00:00]} Bf5 {[%emt 0:02:30]} 3. e3 {[%emt 0:02:00]} e6 {[%emt 0:00:30]} 4. c4 {[%emt 0:03:30]} Bxb1 {[%emt 0:07:30]} 5. Qxb1 {[%emt 0:01:30]} Bb4+ {[%emt 0:00:00]} 6. Kd1 {[%emt 0:03:30]} Nf6 {[%emt 0:01:00]} 7. c5 {[%emt 0:03:30]} c6 {[%emt 0:00:00]} 8. Bd3 {[%emt 0:06:30]} Nbd7 {[%emt 0:02:00]} 9. Nf3 {[%emt 0:01:30]} Ba5 {[%emt 0:00:30]} 10. h3 {[%emt 0:21:30]} Bc7 {[%emt 0:00:00]} 11. g4 {[%emt 0:01:30]} (11. b4 $11) 11... Qb8 {[%emt 0:08:00]} (11... Bxf4 $17 12. exf4 b6) 12. Bxc7 {[%emt 0:05:30]} Qxc7 {[%emt 0:00:00]} 13. g5 {[%emt 0:01:30]} Nh5 {[%emt 0:13:00]} 14. b4 {[%emt 0:02:30]} e5 {[%emt 0:18:30]} 15. Be2 {[%emt 0:03:30]} g6 {[%emt 0:00:30]} 16. Qb2 {[%emt 0:01:30]} e4 {[%emt 0:05:30]} 17. Nd2 {[%emt 0:03:30]} Ng7 {[%emt 0:02:30]} 18. h4 {[%emt 0:10:30]} f5 {[%emt 0:04:30]} ({Better is} 18... h5 $15) 19. b5 $11 {[%emt 0:04:30]} ({White should play} 19. h5 $14) 19... f4 {[%emt 0:06:30]} 20. Rb1 {[%emt 0:01:30]} fxe3 {[%emt 0:02:30]} 21. fxe3 {[%emt 0:00:30]} Nf5 {[%emt 0:00:30]} 22. Rh3 {[%emt 0:00:37]} Rb8 {[%emt 0:06:26]} 23. h5 {[%emt 0:00:35]} Rf8 {[%emt 0:08:34]} 24. hxg6 {[%emt 0:02:56]} hxg6 {[%emt 0:00:00]} 25. Qa3 {[%emt 0:01:42]} Kf7 {[%emt 0:07:42]} 26. Kc2 {[%emt 0:00:40]} Rh8 {[%emt 0:00:01]} 27. Rbh1 {[%emt 0:07:55]} Kg7 {[%emt 0:00:01]} 28. Rxh8 {[%emt 0:03:02]} Rxh8 {[%emt 0:00:00]} 29. Rxh8 {[%emt 0:00:31]} Kxh8 {[%emt 0:00:02]} 30. Nf1 {[%emt 0:00:50]} b6 {[%emt 0:01:24]} 31. cxb6 {[%emt 0:00:17]} Qxb6 {[%emt 0:01:04]} 32. bxc6 {[%emt 0:00:41]} Qxc6+ {[%emt 0:00:13]} 33. Kd2 {[%emt 0:01:02]} Qb6 {[%emt 0:01:34]} 34. Bg4 {[%emt 0:02:18]} Qb5 {[%emt 0:00:19]} 35. Be2 {[%emt 0:00:43]} Qb6 {[%emt 0:00:11]} 36. Ke1 {[%emt 0:00:22]} Kg7 {[%emt 0:02:30]} 37. Kf2 {[%emt 0:00:30]} Nf8 {[%emt 0:00:08]} 38. Bg4 {[%emt 0:00:16]} Kf7 {[%emt 0:00:57]} 39. Bxf5 {[%emt 0:01:34]} gxf5 {[%emt 0:00:41]} 40. Ng3 {[%emt 0:00:24]} Qc7 {[%emt 0:01:09]} 41. Qa6 {[%emt 0:01:28]} Qc2+ {[%emt 0:00:29]} 42. Ne2 {[%emt 0:00:37]} Ne6 {[%emt 0:00:30]} 43. Qxa7+ {[%emt 0:00:30]} Kg6 {[%emt 0:00:00]} 44. Qa6 {[%emt 0:00:02]} Kf7 {[%emt 0:01:01]} 45. g6+ {[%emt 0:00:30]} Ke7 {[%emt 0:00:19]} 46. Qb7+ {[%emt 0:00:12]} Qc7 {[%emt 0:00:14]} 47. Qxc7+ {[%emt 0:00:49]} Nxc7 {[%emt 0:00:30]} 48. Nf4 {[%emt 0:00:30]} Kf6 {[%emt 0:00:01]} 49. Ke2 {[%emt 0:01:00]} Nb5 {[%emt 0:00:30]} 50. Kd2 {[%emt 0:00:09]} Na3 {[%emt 0:00:34]} 51. Kc3 {[%emt 0:00:49]} Kg7 {[%emt 0:00:30]} 52. Kb3 {[%emt 0:00:30]} Nc4 {[%emt 0:00:00]} 53. Nxd5 {[%emt 0:00:00]} Nd2+ {[%emt 0:00:00]} 54. Kc3 {[%emt 0:00:07]} Nb1+ {[%emt 0:00:38]} 55. Kb4 {[%emt 0:00:30]} Kxg6 {[%emt 0:00:30]} 56. a4 {[%emt 0:00:00]} Kf7 {[%emt 0:02:17]} 57. a5 {[%emt 0:00:16]} Ke6 {[%emt 0:00:00]} 58. a6 {[%emt 0:00:19]} 1-0

[Event "1st Turkish League 2017"]
[Site "Konya"]
[Date "2017.07.20"]
[Round "5"]
[White "Keles, Cengiz"]
[Black "Gulbas, Cemil"]
[Result "0-1"]
[ECO "D15"]
[WhiteElo "2124"]
[BlackElo "2366"]
[Annotator "ChessBase"]
[PlyCount "84"]
[EventType "team-tourn"]
[EventCountry "TUR"]
[SourceTitle "playchess.com"]
[Source "ChessBase"]
[SourceQuality "1"]
[TimeControl "5400+30"]

1. d4 {[%emt 0:00:30]} d5 {[%emt 0:01:00]} 2. Nf3 {[%emt 0:00:30]} Nf6 {[%emt 0:00:30]} 3. c4 {[%emt 0:00:00]} c6 {[%emt 0:00:00]} 4. Nc3 {[%emt 0:00:00]} a6 {[%emt 0:01:00]} 5. b3 {[%emt 0:02:30]} Bf5 {[%emt 0:02:30]} 6. e3 {[%emt 0:05:30]} e6 {[%emt 0:00:00]} 7. Be2 {[%emt 0:08:30]} Bd6 {[%emt 0:03:00]} 8. O-O {[%emt 0:00:30]} Nbd7 {[%emt 0:01:30]} 9. Bb2 {[%emt 0:01:30]} b5 {[%emt 0:03:30]} 10. h3 {[%emt 0:13:30]} O-O {[%emt 0:04:30]} 11. Bd3 {[%emt 0:05:30]} Rb8 {[%emt 0:06:30]} 12. Bxf5 {[%emt 0:01:30]} exf5 {[%emt 0:00:30]} 13. cxb5 {[%emt 0:05:30]} cxb5 {[%emt 0:00:00]} 14. Qd3 {[%emt 0:00:30]} g6 {[%emt 0:06:00]} 15. Ne2 {[%emt 0:05:30]} Qb6 {[%emt 0:06:30]} 16. Rac1 {[%emt 0:03:30]} Rbc8 {[%emt 0:06:30]} 17. Ne5 {[%emt 0:08:30]} Qb7 {[%emt 0:01:30]} 18. Ng3 {[%emt 0:09:30]} Ne4 {[%emt 0:02:30]} 19. Ne2 {[%emt 0:09:24]} Rce8 {[%emt 0:19:30]} 20. Nf4 {[%emt 0:07:12]} Nb8 {[%emt 0:09:30]} 21. f3 {[%emt 0:03:49]} Ng3 {[%emt 0:00:30]} 22. Rfe1 {[%emt 0:02:24]} f6 {[%emt 0:02:30]} 23. Kf2 {[%emt 0:03:57]} g5 {[%emt 0:02:30]} 24. Kxg3 {[%emt 0:01:39]} fxe5 {[%emt 0:02:28]} 25. dxe5 {[%emt 0:00:01]} gxf4+ {[%emt 0:00:26]} 26. exf4 {[%emt 0:00:01]} Bb4 {[%emt 0:04:03]} 27. Re2 {[%emt 0:00:45]} Re6 {[%emt 0:02:40]} 28. Rec2 {[%emt 0:00:30]} Ba5 {[%emt 0:00:17]} 29. Rc5 {[%emt 0:00:00]} Qf7 {[%emt 0:02:41]} 30. Rxd5 {[%emt 0:00:23]} Nc6 {[%emt 0:01:13]} 31. Rd6 {[%emt 0:01:23]} Ne7 {[%emt 0:01:26]} 32. Rd7 {[%emt 0:00:19]} h5 {[%emt 0:01:39]} 33. h4 {[%emt 0:00:49]} Kh7 {[%emt 0:00:53]} 34. Rd6 {[%emt 0:00:48]} Rg8+ {[%emt 0:01:04]} 35. Kf2 {[%emt 0:00:36]} Qg6 {[%emt 0:00:24]} 36. Rg1 {[%emt 0:00:00]} Bb6+ {[%emt 0:00:40]} 37. Rxb6 {[%emt 0:00:27]} Rxb6 {[%emt 0:00:00]} 38. g3 {[%emt 0:00:03]} Rc8 {[%emt 0:01:30]} 39. Rd1 {[%emt 0:00:29]} Rg8 {[%emt 0:00:32]} 40. Rg1 {[%emt 0:00:06]} Rbb8 {[%emt 0:00:33]} 41. Qd7 {[%emt 0:00:52]} Qe8 {[%emt 0:01:33]} 42. Qe6 {[%emt 0:00:30]} Rg6 {[%emt 0:00:00]} 0-1

[Event "1st Turkish League 2017"]
[Site "Konya"]
[Date "2017.07.20"]
[Round "5"]
[White "Rzayev, Askar Aliakbar"]
[Black "Zeydan, Salih"]
[Result "0-1"]
[ECO "A45"]
[WhiteElo "2080"]
[BlackElo "2001"]
[Annotator "NA"]
[PlyCount "70"]
[EventType "team-tourn"]
[EventCountry "TUR"]
[SourceTitle "playchess.com"]
[Source "ChessBase"]
[SourceQuality "1"]
[TimeControl "5400+30"]

1. d4 {[%emt 0:00:30]} Nf6 {[%emt 0:01:00]} 2. Bg5 {[%emt 0:00:00]} Ne4 {[%emt 0:00:30]} 3. Bf4 {[%emt 0:00:00]} c5 {[%emt 0:00:30]} 4. d5 {[%emt 0:00:00]} Qb6 {[%emt 0:03:30]} 5. Bc1 {[%emt 0:00:00]} f5 {[%emt 0:05:30]} 6. Nf3 {[%emt 0:04:30]} g6 {[%emt 0:04:30]} 7. a4 {[%emt 0:02:30]} Qa5+ {[%emt 0:09:30]} 8. c3 {[%emt 0:00:30]} Bg7 {[%emt 0:06:30]} 9. Nbd2 {[%emt 0:07:30]} Nxd2 {[%emt 0:07:30]} 10. Nxd2 {[%emt 0:00:30]} d6 {[%emt 0:01:30]} 11. Nc4 {[%emt 0:00:30]} Bxc3+ {[%emt 0:01:30]} 12. bxc3 {[%emt 0:34:30]} Qxc3+ {[%emt 0:00:30]} 13. Bd2 {[%emt 0:00:00]} Qxc4 {[%emt 0:00:30]} 14. Ba5 {[%emt 0:01:00]} e6 {[%emt 0:11:30]} 15. dxe6 {[%emt 0:03:30]} Nc6 {[%emt 0:03:30]} 16. e3 {[%emt 0:01:30]} Qxe6 {[%emt 0:00:30]} 17. Bb5 {[%emt 0:04:30]} Bd7 {[%emt 0:05:30]} 18. Bc3 {[%emt 0:02:30]} O-O {[%emt 0:01:30]} 19. O-O {[%emt 0:00:00]} a6 {[%emt 0:01:30]} 20. Be2 {[%emt 0:02:00]} Ne5 {[%emt 0:03:30]} 21. Bxe5 $19 {[%emt 0:11:30]} Qxe5 {[%emt 0:02:30]} 22. Qb3+ {[%emt 0:01:30]} Be6 {[%emt 0:01:30]} 23. Qxb7 {[%emt 0:01:30]} Bd5 {[%emt 0:02:30]} 24. Qc7 {[%emt 0:00:30]} f4 {[%emt 0:02:30]} 25. Rfd1 {[%emt 0:12:02]} fxe3 {[%emt 0:03:51]} 26. f3 {[%emt 0:00:12]} Rf7 {[%emt 0:01:58]} 27. Qa5 {[%emt 0:01:00]} Rb7 {[%emt 0:04:48]} 28. Rac1 {[%emt 0:05:01]} Rb2 {[%emt 0:00:56]} 29. Qe1 {[%emt 0:01:57]} Bf7 {[%emt 0:07:25]} 30. Rb1 {[%emt 0:02:32]} Rab8 {[%emt 0:02:36]} 31. Rxb2 {[%emt 0:00:42]} Rxb2 {[%emt 0:00:10]} 32. Bxa6 {[%emt 0:00:49]} e2 {[%emt 0:01:04]} 33. Rc1 {[%emt 0:00:29]} Qe3+ {[%emt 0:02:06]} 34. Kh1 {[%emt 0:00:01]} Rd2 {[%emt 0:01:02]} 35. Bb5 {[%emt 0:00:58]} Bb3 {[%emt 0:00:46]} 0-1

[Event "1st Turkish League 2017"]
[Site "Konya"]
[Date "2017.07.20"]
[Round "5"]
[White "Koc, Ilkay"]
[Black "Annaberdiyev, Babageldi"]
[Result "0-1"]
[ECO "E61"]
[WhiteElo "2074"]
[BlackElo "2262"]
[Annotator "NA"]
[PlyCount "124"]
[EventType "team-tourn"]
[EventCountry "TUR"]
[SourceTitle "playchess.com"]
[Source "ChessBase"]
[SourceQuality "1"]
[TimeControl "5400+30"]

1. d4 {[%emt 0:00:30]} Nf6 {[%emt 0:01:00]} 2. c4 {[%emt 0:00:00]} g6 {[%emt 0:01:30]} 3. Nc3 {[%emt 0:00:00]} Bg7 {[%emt 0:00:00]} 4. Nf3 {[%emt 0:00:00]} O-O {[%emt 0:00:00]} 5. Bg5 {[%emt 0:00:00]} h6 {[%emt 0:01:30]} 6. Bh4 {[%emt 0:00:30]} c5 {[%emt 0:00:30]} 7. d5 {[%emt 0:00:00]} d6 {[%emt 0:00:30]} 8. e3 {[%emt 0:00:00]} a6 {[%emt 0:00:30]} 9. Be2 {[%emt 0:00:30] E61: King's Indian: Early deviations for White, including Smyslov System} (9. Nd2 e6 10. a4 exd5 11. cxd5 Nbd7 12. Be2 Re8 13. O-O Rb8 14. a5 Qc7 15. e4 g5 16. Bg3 Ne5 17. Qc2 Nfd7 18. Nd1 b6 19. axb6 Rxb6 20. Ra2 Nf8 21. Bh5 Rb4 {1-0 (58) Sokolov,I (2641)-Drazic,S (2535) Vrnjacka Banja 2010}) 9... g5 {[%emt 0:14:30]} 10. Bg3 {[%emt 0:00:30]} Nh5 {[%emt 0:00:30]} 11. Qc2 {[%emt 0:03:30]} Nxg3 {[%emt 0:00:30]} 12. hxg3 {[%emt 0:02:30]} f5 $146 {[%emt 0:00:30]} ({Predecessor:} 12... e5 13. Nd2 f5 14. g4 fxg4 15. Nde4 Bf5 16. O-O-O b5 17. cxb5 axb5 18. Bxb5 {0-1 (54) Meier,W (2207)-Ahman,L (2097) Dresden 2008}) 13. g4 {[%emt 0:05:30]} b5 {[%emt 0:02:30]} 14. gxf5 {[%emt 0:06:30]} Bxf5 {[%emt 0:01:30]} 15. Bd3 {[%emt 0:00:30]} Qd7 {[%emt 0:02:30]} 16. e4 {[%emt 0:03:30]} bxc4 {[%emt 0:01:30]} 17. Bxc4 {[%emt 0:00:30]} Bg6 {[%emt 0:00:00]} 18. Nh2 {[%emt 0:17:30]} Qb7 {[%emt 0:06:00]} 19. Ng4 {[%emt 0:07:30]} h5 {[%emt 0:00:30]} 20. Ne3 {[%emt 0:00:30]} Nd7 {[%emt 0:00:30]} 21. Be2 {[%emt 0:00:00]} g4 {[%emt 0:04:30]} 22. Nf5 {[%emt 0:03:00]} Bxf5 {[%emt 0:09:30]} 23. exf5 {[%emt 0:00:30]} Nf6 {[%emt 0:00:00]} 24. f3 {[%emt 0:04:30]} Rfb8 {[%emt 0:00:00]} 25. b3 {[%emt 0:15:30]} Qb4 {[%emt 0:00:30]} 26. Kf1 {[%emt 0:04:30]} Qf4 {[%emt 0:04:30]} 27. Re1 {[%emt 0:04:30]} Rb4 {[%emt 0:02:30]} 28. Qc1 {[%emt 0:01:30]} (28. Bd1 $1 $15) 28... Qxf5 $17 {[%emt 0:01:30]} 29. Qe3 {[%emt 0:03:39]} gxf3 {[%emt 0:08:30]} 30. gxf3 {[%emt 0:01:07]} Ng4 {[%emt 0:00:30]} 31. Qc1 {[%emt 0:02:28]} Bd4 {[%emt 0:00:30]} 32. Rg1 {[%emt 0:01:49]} Bxg1 {[%emt 0:01:30]} 33. Kxg1 {[%emt 0:00:01]} Nf6 {[%emt 0:00:30]} 34. Kf2 {[%emt 0:00:30]} Kf7 {[%emt 0:00:30]} 35. Bc4 {[%emt 0:02:16]} Rg8 {[%emt 0:01:30]} 36. Ne4 {[%emt 0:02:18]} Ng4+ {[%emt 0:00:30]} 37. Ke2 {[%emt 0:02:32]} Ne5 {[%emt 0:00:30]} 38. Qe3 {[%emt 0:02:02]} Rg2+ {[%emt 0:02:30]} 39. Kf1 {[%emt 0:01:06]} Rxa2 {[%emt 0:04:30]} 40. Be2 {[%emt 0:00:58]} Rxe4 {[%emt 0:01:30]} 41. Qxe4 {[%emt 0:00:32]} Qxe4 {[%emt 0:00:30]} 42. fxe4 {[%emt 0:00:30]} h4 {[%emt 0:00:30]} 43. Rc1 {[%emt 0:00:19]} Kf6 {[%emt 0:00:30]} 44. Rc3 {[%emt 0:00:30]} Kg5 {[%emt 0:00:00]} 45. Rh3 {[%emt 0:00:49]} a5 {[%emt 0:00:00]} 46. Rh2 {[%emt 0:01:33]} Rb2 {[%emt 0:01:30]} 47. Rf2 {[%emt 0:00:51]} Rb1+ {[%emt 0:00:00]} 48. Kg2 {[%emt 0:00:30]} Rxb3 {[%emt 0:00:00]} 49. Rf5+ {[%emt 0:00:00]} Kg6 {[%emt 0:00:30]} 50. Bh5+ {[%emt 0:00:28]} Kh6 {[%emt 0:00:30]} 51. Be8 {[%emt 0:00:30]} h3+ {[%emt 0:00:30]} 52. Kh1 {[%emt 0:00:00]} Ng4 {[%emt 0:00:00]} 53. Rh5+ {[%emt 0:00:00]} Kg7 {[%emt 0:00:00]} 54. Rg5+ {[%emt 0:00:29]} Kf8 {[%emt 0:00:00]} 55. Rxg4 {[%emt 0:00:00]} Kxe8 {[%emt 0:00:00]} 56. e5 {[%emt 0:00:00]} dxe5 {[%emt 0:00:30]} 57. Rc4 {[%emt 0:00:02]} Kd7 {[%emt 0:00:00]} 58. Rxc5 {[%emt 0:00:30]} a4 {[%emt 0:00:00]} 59. Ra5 {[%emt 0:00:30]} a3 {[%emt 0:00:00]} 60. Ra6 {[%emt 0:00:00]} e4 {[%emt 0:00:00]} 61. Kh2 {[%emt 0:00:49]} e3 {[%emt 0:00:30]} 62. Kg3 {[%emt 0:00:03]} h2 {[%emt 0:00:00]} 0-1

[Event "1st Turkish League 2017"]
[Site "Konya"]
[Date "2017.07.20"]
[Round "5"]
[White "Gunduz, Umut Erdem"]
[Black "Yerden, Huseyin Eren"]
[Result "0-1"]
[ECO "B08"]
[WhiteElo "2066"]
[BlackElo "1904"]
[Annotator "NA"]
[PlyCount "60"]
[EventType "team-tourn"]
[EventCountry "TUR"]
[SourceTitle "playchess.com"]
[Source "ChessBase"]
[SourceQuality "1"]
[TimeControl "5400+30"]

1. e4 {[%emt 0:00:30]} g6 {[%emt 0:01:00]} 2. d4 {[%emt 0:00:30]} Bg7 {[%emt 0:00:30]} 3. Nf3 {[%emt 0:00:00]} d6 {[%emt 0:00:30]} 4. Bc4 {[%emt 0:00:00]} c6 {[%emt 0:00:30]} 5. Bb3 {[%emt 0:00:30]} Nf6 {[%emt 0:02:30]} 6. Nc3 {[%emt 0:01:30]} b5 {[%emt 0:00:30]} 7. a3 {[%emt 0:00:30]} Ba6 {[%emt 0:01:30]} 8. Bf4 {[%emt 0:04:30]} O-O {[%emt 0:04:30]} 9. Qd2 {[%emt 0:02:30]} e6 {[%emt 0:06:30]} 10. Bg5 {[%emt 0:06:30]} Qc7 {[%emt 0:07:30]} 11. h4 {[%emt 0:13:30]} Nbd7 {[%emt 0:06:30] [#]} (11... c5 $14) 12. h5 $1 {[%emt 0:02:30]} c5 {[%emt 0:06:30]} 13. hxg6 {[%emt 0:00:30]} hxg6 {[%emt 0:01:30]} 14. Bh6 {[%emt 0:00:30]} Ng4 {[%emt 0:02:30]} 15. Bxg7 {[%emt 0:04:30]} Kxg7 $16 {[%emt 0:00:30]} 16. Qg5 {[%emt 0:04:30]} Rh8 {[%emt 0:01:30]} 17. Nh4 {[%emt 0:00:00]} Ndf6 {[%emt 0:04:30]} 18. f3 {[%emt 0:20:00]} cxd4 {[%emt 0:04:30]} 19. fxg4 {[%emt 0:00:30]} dxc3 {[%emt 0:00:30]} 20. Bxe6 {[%emt 0:02:30]} Qc5 {[%emt 0:06:30]} 21. Nf5+ {[%emt 0:15:38]} Qxf5 {[%emt 0:00:30]} 22. gxf5 {[%emt 0:00:20]} Rxh1+ {[%emt 0:00:30]} 23. Ke2 {[%emt 0:00:30]} b4+ {[%emt 0:00:30]} 24. Ke3 {[%emt 0:00:00]} Rxa1 {[%emt 0:00:30]} 25. Bxf7 {[%emt 0:01:26]} Re1+ {[%emt 0:00:30]} 26. Kf4 {[%emt 0:00:01]} Rxe4+ {[%emt 0:02:30]} 27. Kf3 {[%emt 0:00:37]} Rg4 {[%emt 0:00:30]} 28. Qe3 {[%emt 0:01:04]} Bb7+ {[%emt 0:00:30]} 29. Kf2 {[%emt 0:00:30]} Rxg2+ {[%emt 0:00:30]} 30. Kf1 {[%emt 0:00:30]} Rh8 {[%emt 0:00:00]} 0-1

[Event "1st Turkish League 2017"]
[Site "Konya"]
[Date "2017.07.20"]
[Round "5"]
[White "Gulbeyaz, Emir"]
[Black "Dedebas, Emre Emin"]
[Result "1-0"]
[ECO "C68"]
[WhiteElo "1952"]
[BlackElo "2322"]
[Annotator "ChessBase"]
[PlyCount "119"]
[EventType "team-tourn"]
[EventCountry "TUR"]
[SourceTitle "playchess.com"]
[Source "ChessBase"]
[SourceQuality "1"]
[TimeControl "5400+30"]

1. e4 {[%emt 0:00:30]} e5 {[%emt 0:01:00]} 2. Nf3 {[%emt 0:00:30]} Nc6 {[%emt 0:00:30]} 3. Bb5 {[%emt 0:00:30]} a6 {[%emt 0:00:00]} 4. Bxc6 {[%emt 0:02:30]} dxc6 {[%emt 0:00:00]} 5. d4 {[%emt 0:00:30]} exd4 {[%emt 0:00:30]} 6. Qxd4 {[%emt 0:00:00]} Qxd4 {[%emt 0:00:30]} 7. Nxd4 {[%emt 0:00:00]} Bd7 {[%emt 0:10:30]} 8. Nc3 {[%emt 0:00:00]} O-O-O {[%emt 0:00:30]} 9. Be3 {[%emt 0:00:00]} f6 {[%emt 0:09:30]} 10. O-O-O {[%emt 0:00:30]} h5 {[%emt 0:00:30]} 11. h4 {[%emt 0:01:30]} Nh6 {[%emt 0:02:30]} 12. f3 {[%emt 0:00:30]} Nf7 {[%emt 0:00:00]} 13. Nde2 {[%emt 0:14:30]} Ne5 {[%emt 0:09:00]} 14. b3 {[%emt 0:01:30]} g6 {[%emt 0:11:30]} 15. Rd2 {[%emt 0:08:30]} Bg7 {[%emt 0:05:30]} 16. Rhd1 {[%emt 0:00:30]} b6 {[%emt 0:03:30]} 17. Kb1 {[%emt 0:08:30]} Rhe8 {[%emt 0:03:30]} 18. Na4 {[%emt 0:02:30]} c5 {[%emt 0:00:30]} 19. Nac3 {[%emt 0:00:30]} Be6 {[%emt 0:11:30]} 20. Nf4 {[%emt 0:12:30]} Bf7 {[%emt 0:00:30]} 21. Rxd8+ {[%emt 0:02:30]} Rxd8 {[%emt 0:01:30]} 22. Rxd8+ {[%emt 0:00:30]} Kxd8 {[%emt 0:00:30]} 23. Ncd5 {[%emt 0:00:30]} g5 {[%emt 0:10:11]} 24. hxg5 {[%emt 0:01:30]} fxg5 {[%emt 0:00:03]} 25. Nd3 {[%emt 0:00:30]} g4 {[%emt 0:00:24]} 26. Bg5+ {[%emt 0:01:30]} Kd7 {[%emt 0:03:24]} 27. Nxe5+ {[%emt 0:14:30]} Bxe5 {[%emt 0:00:11]} 28. fxg4 {[%emt 0:07:19]} hxg4 {[%emt 0:01:16]} 29. Nf6+ {[%emt 0:00:22]} Ke6 {[%emt 0:06:01]} 30. Nxg4 {[%emt 0:00:30]} Bg3 {[%emt 0:00:00]} 31. Nh6 {[%emt 0:03:34]} Be8 {[%emt 0:01:32]} 32. Nf5 {[%emt 0:00:56]} Be5 {[%emt 0:00:11]} 33. Ne3 {[%emt 0:00:37]} Bg6 {[%emt 0:04:03]} 34. Nf5 {[%emt 0:00:12]} Bh2 {[%emt 0:06:07]} 35. Bd8 {[%emt 0:00:13]} Bxf5 {[%emt 0:00:38]} 36. exf5+ {[%emt 0:00:30]} Kxf5 {[%emt 0:00:00]} 37. Kc1 {[%emt 0:00:08]} Kg4 {[%emt 0:00:31]} 38. Kd2 {[%emt 0:03:08]} Bf4+ {[%emt 0:00:30]} 39. Kd3 {[%emt 0:00:30]} Kf5 {[%emt 0:00:00]} 40. Kc4 {[%emt 0:00:34]} Ke6 {[%emt 0:01:07]} 41. g4 {[%emt 0:00:54]} Kd7 {[%emt 0:00:28]} 42. Bf6 {[%emt 0:00:15]} Ke6 {[%emt 0:01:21]} 43. Bd8 {[%emt 0:00:30]} Kd7 {[%emt 0:00:30]} 44. Bh4 {[%emt 0:00:30]} Kc6 {[%emt 0:00:00]} 45. Bf6 {[%emt 0:00:00]} b5+ {[%emt 0:00:10]} 46. Kd3 {[%emt 0:00:21]} Kd5 {[%emt 0:00:30]} 47. c4+ {[%emt 0:00:00]} Ke6 {[%emt 0:00:00]} 48. Ke4 {[%emt 0:00:02]} Bg3 {[%emt 0:00:09]} 49. Bc3 {[%emt 0:00:37]} Bh4 {[%emt 0:00:46]} 50. Kf4 {[%emt 0:00:05]} b4 {[%emt 0:01:15]} 51. Bb2 {[%emt 0:00:06]} Bf2 {[%emt 0:00:38]} 52. Ke4 {[%emt 0:01:01]} Bh4 {[%emt 0:00:30]} 53. Bc1 c6 {[%emt 0:00:00]} 54. g5 {[%emt 0:01:45]} Be1 {[%emt 0:00:18]} 55. Be3 {[%emt 0:00:30]} Bh4 {[%emt 0:00:10]} 56. Kf4 {[%emt 0:00:00]} Be1 {[%emt 0:01:08]} 57. Bxc5 {[%emt 0:00:00]} Bd2+ {[%emt 0:00:12]} 58. Be3 {[%emt 0:00:28]} Be1 {[%emt 0:00:01]} 59. Ke4 {[%emt 0:00:04]} Bc3 {[%emt 0:00:30]} 60. Bd4 {[%emt 0:00:00]} 1-0